bitfinex/quotes_ETHUSD_20250605
["timestamp","ask_amount","ask_price","bid_price","bid_amount"]
[1749154337310,7.577,2518.1,2518.0,16.0]
[1749154337510,11.54824816,2518.1,2518.0,16.0]
[1749154337718,12.13089236,2518.1,2518.0,16.0]
[1749154338023,8.1596442,2518.1,2517.5,3.97217179]
[1749154338244,7.577,2518.1,2517.7,19.97179115]
[1749154338467,7.577,2518.1,2517.8,3.97170881]
[1749154338749,1.3179,2518.2,2517.9,3.9715636]
[1749154338912,7.553,2518.1,2517.9,3.9715636]
[1749154339115,7.553,2518.1,2518.0,3.97140587]
[1749154339323,1.62009041,2518.6,2518.0,16.0]
[1749154339644,7.548,2518.5,2518.2,3.97102286]
[1749154339874,7.548,2518.5,2517.8,13.39262125]
[1749154340016,7.548,2518.5,2518.1,16.0]
[1749154340210,7.548,2518.5,2517.8,17.87542706]
[1749154340410,7.548,2518.5,2518.1,3.97118141]
[1749154340730,7.548,2518.5,2517.8,16.40664493]
[1749154340915,7.548,2518.5,2518.2,3.97096421]
[1749154341316,7.548,2518.5,2518.2,3.77096421]
[1749154341517,7.534,2518.4,2518.2,3.97101109]
[1749154341718,7.534,2518.4,2518.0,16.0]
[1749154341918,7.534,2518.4,2518.1,16.0]
[1749154342431,11.50479513,2518.4,2518.0,16.0]
[1749154342668,1.2726,2518.2,2517.1,1.42907488]
[1749154342872,7.522,2518.1,2517.8,3.97170382]
[1749154343372,7.522,2518.1,2517.1,1.42907488]
[1749154343574,7.522,2518.1,2517.6,3.97190218]
[1749154343868,1.2726,2518.2,2518.0,3.97133176]
[1749154344038,1.2726,2518.2,2518.1,3.97124816]
[1749154344238,8.8036,2518.2,2518.1,3.97124816]
[1749154344566,8.8036,2518.2,2517.9,3.97146469]
[1749154345065,8.8036,2518.2,2517.8,3.97165344]
[1749154345568,8.8036,2518.2,2516.9,9.01429249]
[1749154345722,8.8036,2518.2,2517.4,3.9723246]
[1749154345927,3.97172336,2517.8,2517.4,3.9723246]
[1749154346145,7.522,2517.7,2517.4,16.0]
[1749154346457,7.522,2517.7,2517.1,0.16037488]
[1749154346458,1.2624,2517.6,2517.2,3.97258529]
[1749154346621,1.2624,2517.6,2517.1,0.02]
[1749154346823,2.77061847,2517.6,2517.1,3.99275991]
[1749154347021,2.77061847,2517.6,2517.2,19.97258569]
[1749154347272,6.7426556,2517.6,2517.2,19.97258569]
[1749154347565,2.77061847,2517.6,2517.3,3.9724696]
[1749154348425,2.77061847,2517.6,2517.2,3.9725703]
[1749154348618,1.2624,2517.6,2517.1,16.4113052]
[1749154348853,7.501,2517.5,2517.4,3.97224546]
[1749154349269,1.2624,2517.6,2517.3,3.97244035]
[1749154349575,1.2624,2517.6,2517.3,3.97251022]
[1749154349576,7.498,2517.5,2517.3,3.97251022]
[1749154349726,7.498,2517.5,2517.2,3.97264375]
[1749154349928,7.498,2517.5,2517.4,3.97235242]
[1749154350178,7.498,2517.5,2517.1,0.4113052]
[1749154350330,7.498,2517.5,2517.3,3.97240014]
[1749154350869,7.498,2517.5,2517.2,3.97254902]
[1749154351761,8.77123435,2517.5,2517.1,0.4113052]
[1749154351966,8.77123435,2517.5,2517.4,3.97235242]
[1749154351967,7.498,2517.5,2517.4,3.97235242]
[1749154352329,7.498,2517.5,2517.3,3.97242721]
[1749154352528,7.498,2517.5,2517.1,0.4113052]
[1749154352763,7.498,2517.5,2517.2,3.97266043]
[1749154352943,7.498,2517.5,2517.2,16.0]
[1749154353125,11.47027651,2517.5,2517.2,16.0]
[1749154353326,7.498,2517.5,2517.2,16.0]
[1749154353538,7.498,2517.5,2517.2,19.97265378]
[1749154353741,7.498,2517.5,2517.3,3.9724879]
[1749154354233,7.498,2517.5,2517.2,18.43568957]
[1749154354479,7.498,2517.5,2517.1,0.4113052]
[1749154354480,3.97266804,2517.2,2517.1,0.02]
[1749154354872,5.32316804,2517.2,2517.1,0.02]
[1749154355485,7.65016804,2517.2,2517.1,0.02]
[1749154357085,5.32316804,2517.2,2517.1,0.02]
[1749154357294,7.438,2517.2,2517.1,0.02]
[1749154357439,11.41066804,2517.2,2517.1,0.02]
[1749154359456,5.26770648,2517.4,2517.1,0.02]
[1749154359457,1.2953,2517.4,2517.1,0.02]
[1749154359747,1.3505,2517.7,2517.3,3.97236099]
[1749154359965,7.419,2517.6,2517.3,3.97246881]
[1749154360135,7.419,2517.6,2517.1,0.02]
[1749154360336,7.419,2517.6,2517.2,3.97266379]
[1749154360541,7.419,2517.6,2517.1,0.02]
[1749154360542,8.69315057,2517.6,2517.1,0.02]
[1749154360736,3.97266804,2517.2,2517.1,0.02]
[1749154360955,8.6774,2517.2,2517.1,0.02]
[1749154361491,8.6714,2517.2,2517.1,0.02]
[1749154361787,7.412,2517.2,2517.1,0.02]
[1749154362303,7.412,2517.2,2517.1,19.99282587]
[1749154362500,7.407,2517.2,2517.1,16.02]
[1749154362998,1.2594,2517.5,2517.2,3.97261235]
[1749154363152,7.401,2517.4,2517.2,3.97261235]
[1749154363341,7.401,2517.4,2517.1,16.02]
[1749154363542,0.86604,2517.3,2517.1,16.02]
[1749154363756,4.83855329,2517.3,2517.1,16.02]
[1749154363985,3.97266804,2517.2,2517.1,0.02]
[1749154364543,5.23946804,2517.2,2517.1,0.02]
[1749154366108,6.17040773,2517.2,2517.1,0.02]
[1749154366246,7.47676542,2517.2,2517.1,0.02]
[1749154366443,11.47676542,2517.2,2517.1,0.02]
[1749154366710,0.55,2516.9,2516.1,0.02]
[1749154366847,3.97424688,2516.2,2516.1,0.02]
[1749154367053,12.16908289,2516.2,2516.1,0.02]
[1749154367748,13.46008289,2516.2,2516.1,0.02]
[1749154368693,6.06008289,2516.2,2516.1,0.02]
[1749154368869,15.69208289,2516.2,2516.1,0.02]
[1749154369272,20.05548077,2516.2,2516.1,0.02]
[1749154369493,20.98351456,2516.2,2516.1,0.02]
[1749154369707,20.62011705,2516.2,2516.1,0.02]
[1749154369990,19.68808289,2516.2,2516.1,0.02]
[1749154370160,12.30608289,2516.2,2516.1,0.02]
[1749154370498,19.68408289,2516.2,2516.1,0.02]
[1749154370880,15.68008289,2516.2,2516.1,0.02]
[1749154372193,14.80868289,2516.2,2516.1,0.02]
[1749154372504,3.9756689,2515.3,2515.2,0.40272781]
[1749154372686,11.3536689,2515.3,2515.2,0.40272781]
[1749154373188,3.97593391,2515.2,2514.5,1.2736]
[1749154373391,3.97593391,2515.2,2514.7,16.0]
[1749154373618,7.7776,2515.3,2514.5,1.2736]
[1749154373759,0.79483601,2515.2,2514.2,5.96181228]
[1749154373960,0.79483601,2515.2,2514.3,19.97715418]
[1749154374197,7.374,2515.1,2514.5,16.0]
[1749154374359,7.374,2515.1,2514.5,3.97693307]
[1749154374785,7.374,2515.1,2514.4,0.40328484]
[1749154374987,8.4554436,2515.1,2514.4,3.97705768]
[1749154375185,7.37,2515.0,2514.7,16.0]
[1749154375462,0.3996,2515.3,2514.6,16.0]
[1749154375679,7.375,2515.2,2514.4,3.97708564]
[1749154375895,7.375,2515.2,2514.5,16.0]
[1749154376278,7.375,2515.2,2514.3,19.97717354]
[1749154376675,0.3996,2515.3,2514.6,3.97663611]
[1749154376895,7.365,2515.2,2514.3,16.39608332]
[1749154377210,7.365,2515.2,2514.3,0.39608332]
[1749154377512,7.365,2515.2,2514.2,16.0]
[1749154377719,7.368,2515.1,2514.1,0.42738294]
[1749154378514,7.368,2515.1,2514.1,4.4048545]
[1749154378705,0.7368,2515.0,2514.1,6.18300248]
[1749154379110,7.368,2515.1,2514.3,19.97711654]
[1749154379282,7.368,2515.1,2514.1,0.42738294]
[1749154379482,0.3996,2515.0,2514.1,0.42738294]
[1749154380692,0.3996,2515.0,2514.2,16.0]
[1749154380890,0.3996,2514.8,2514.1,0.42738294]
[1749154381103,0.3996,2514.8,2514.1,16.42738294]
[1749154381314,0.3996,2514.8,2514.1,0.42738294]
[1749154381492,7.351,2514.7,2514.1,0.42738294]
[1749154382023,2.247,2515.0,2514.3,3.97716187]
[1749154382223,7.346,2514.6,2514.4,16.0]
[1749154382383,2.247,2515.2,2514.5,1.99772501]
[1749154382704,7.344,2515.1,2514.6,0.55]
[1749154382883,7.344,2515.1,2514.7,16.0]
[1749154383090,7.344,2515.1,2514.5,1.99772501]
[1749154383424,7.344,2515.1,2514.4,16.9659]
[1749154383628,7.344,2515.1,2514.2,0.55]
[1749154383827,7.344,2515.1,2514.4,16.0]
[1749154384002,0.72735731,2515.5,2514.6,19.9766874]
[1749154384200,9.586,2515.4,2514.6,16.0]
[1749154384393,7.336,2515.3,2514.6,1.99768814]
[1749154384618,7.336,2515.3,2514.1,0.42738294]
[1749154384834,9.01935139,2515.0,2514.1,0.42738294]
[1749154385035,2.247,2514.9,2514.1,0.42738294]
[1749154385835,4.0,2514.7,2514.1,0.42738294]
[1749154386135,9.01935139,2514.4,2514.1,0.02]
[1749154386433,9.01935139,2514.4,2513.1,0.17096413]
[1749154386434,1.5504505,2514.4,2513.1,0.17096413]
[1749154386618,9.01935139,2514.2,2513.1,0.02]
[1749154386822,9.01935139,2513.9,2513.1,0.16942982]
[1749154387439,12.595,2513.8,2513.1,0.02]
[1749154387607,9.6,2513.3,2513.1,0.02]
[1749154388111,0.92700791,2513.7,2513.1,0.02]
[1749154388112,13.01935139,2513.2,2513.1,0.02]
[1749154388419,13.01935139,2513.2,2512.1,0.41050187]
[1749154388420,13.598,2513.2,2512.1,0.41050187]
[1749154388626,9.599,2513.1,2512.1,0.41050187]
[1749154388845,10.5079466,2513.0,2512.1,0.02]
[1749154389043,10.86793647,2513.0,2512.1,0.02]
[1749154389216,4.0,2512.9,2512.1,0.02]
[1749154389764,9.601,2512.8,2512.1,0.02]
[1749154390128,4.0,2512.7,2512.1,0.02]
[1749154390324,7.355,2512.6,2512.3,9.01935139]
[1749154390532,8.595,2513.8,2512.6,16.0]
[1749154390730,9.595,2513.7,2512.9,3.97938574]
[1749154390926,9.595,2513.7,2512.9,16.0]
[1749154391145,9.595,2513.7,2512.6,19.97994109]
[1749154391314,9.591,2513.6,2512.6,19.97980291]
[1749154391503,9.59,2513.5,2512.6,2.0881738]
[1749154391697,9.59,2513.5,2512.7,16.0]
[1749154392203,8.595,2513.8,2512.7,16.0]
[1749154392399,9.586,2513.7,2512.2,0.55]
[1749154392605,9.584,2513.6,2512.7,16.0]
[1749154392841,3.1754,2513.5,2512.5,0.55]
[1749154393046,2.217,2513.5,2512.9,16.55]
[1749154393203,8.595,2513.8,2513.5,3.9785045]
[1749154393411,7.367,2513.7,2513.2,16.0]
[1749154393604,2.217,2514.0,2513.6,16.0]
[1749154393841,2.217,2514.5,2513.9,16.0]
[1749154394103,0.02,2514.9,2514.2,9.01935139]
[1749154394306,2.217,2515.3,2514.4,0.55]
[1749154394605,2.217,2515.3,2514.8,25.01935139]
[1749154394606,0.32998814,2515.2,2514.8,25.01935139]
[1749154394797,0.32998814,2515.2,2515.0,16.0]
[1749154395012,0.32998814,2515.2,2514.9,16.0]
[1749154395535,7.364,2515.1,2514.9,16.0]
[1749154395714,1.6,2515.0,2513.0,1.194568]
[1749154396044,1.14933718,2513.9,2513.0,1.194568]
[1749154396254,2.06821504,2513.8,2512.4,9.01935139]
[1749154396405,11.72621504,2513.8,2512.5,3.97998995]
[1749154396603,11.72621504,2513.8,2512.6,16.0]
[1749154396837,11.72621504,2513.8,2512.5,16.0]
[1749154397143,1.17688781,2513.7,2512.6,6.52144447]
[1749154397707,2.09576567,2513.7,2512.6,6.52146902]
[1749154397908,9.651,2513.6,2512.6,2.54159086]
[1749154398156,9.651,2513.6,2512.5,16.55]
[1749154398361,9.651,2513.6,2512.6,3.97992661]
[1749154398672,2.09576567,2513.7,2512.6,3.97986025]
[1749154398873,9.643,2513.6,2512.8,16.0]
[1749154399024,9.643,2513.6,2512.8,19.97956302]
[1749154399227,0.99550988,2513.5,2512.6,19.97985809]
[1749154399461,0.99550988,2513.5,2512.5,0.55]
[1749154399827,0.99550988,2513.5,2512.6,19.97980385]
[1749154400021,0.99550988,2513.5,2512.6,3.97980385]
[1749154400223,0.99550988,2513.5,2512.4,4.37675048]
[1749154400454,1.15573877,2513.4,2512.5,16.0]
[1749154400651,1.15573877,2513.4,2512.5,3.98009069]
[1749154400858,1.15573877,2513.4,2512.4,20.37673293]
[1749154401635,1.15573877,2513.4,2512.7,16.0]
[1749154401846,9.62,2513.3,2512.6,16.0]
[1749154402036,9.62,2513.3,2512.6,19.9798394]
[1749154402371,9.62,2513.3,2512.6,16.0]
[1749154402535,9.62,2513.3,2512.6,19.97993573]
[1749154402739,7.396,2513.2,2512.4,16.396753]
[1749154402927,7.396,2513.2,2512.4,22.76858196]
[1749154403123,7.396,2513.2,2512.2,1.97211499]
[1749154403330,0.91887786,2513.1,2512.1,1.99449288]
[1749154403547,0.91887786,2513.1,2512.2,3.980468]
[1749154403747,0.91887786,2513.1,2512.2,5.95267336]
[1749154403948,10.52687786,2513.0,2512.1,0.02]
[1749154404165,3.12090283,2512.9,2512.1,0.02]
[1749154404365,0.91887786,2512.8,2512.1,0.02]
[1749154404668,0.91887786,2512.7,2512.1,0.02]
[1749154404957,2.20202497,2512.9,2512.1,0.02]
[1749154404958,0.91887786,2512.8,2512.1,0.02]
[1749154405258,2.20202497,2512.9,2512.1,0.02]
[1749154405259,10.52387786,2512.7,2512.1,0.02]
[1749154405434,1.05238779,2512.6,2512.1,0.02]
[1749154406557,1.97126565,2512.6,2512.1,0.02]
[1749154406726,0.91887786,2512.5,2512.1,0.02]
[1749154407461,2.06821504,2512.4,2512.1,0.02]
[1749154407648,4.0,2512.2,2512.1,0.02]
[1749154407965,7.34882877,2512.2,2512.1,0.02]
[1749154408181,5.79837827,2512.2,2512.1,0.02]
[1749154408486,14.81772966,2512.2,2511.3,0.1703952]
[1749154408664,1.53930706,2511.4,2511.3,0.1703952]
[1749154408976,17.15514683,2511.4,2511.3,0.1703952]
[1749154409281,0.55,2511.3,2509.1,1.9367208]
[1749154409489,1.15295375,2510.6,2509.3,1.9423114]
[1749154409773,2.30590751,2510.9,2509.2,9.01935139]
[1749154409774,7.423,2510.5,2509.2,1.99887017]
[1749154410260,4.0,2510.4,2509.2,5.98409255]
[1749154410464,4.0,2510.4,2509.1,1.51429213]
[1749154410465,10.052,2510.3,2509.4,1.90466556]
[1749154410627,4.0,2510.4,2509.7,17.97334299]
[1749154410964,2.219,2510.7,2510.1,3.98390502]
[1749154411128,9.75695375,2511.2,2509.9,16.9591]
[1749154411332,9.659,2511.1,2510.0,0.55]
[1749154411637,0.5,2510.5,2510.4,4.53342893]
[1749154411882,8.604,2511.2,2510.4,16.55]
[1749154411883,2.219,2511.2,2510.4,16.55]
[1749154412023,2.219,2511.2,2510.5,4.53322207]
[1749154412228,2.219,2511.3,2510.5,0.55]
[1749154412428,2.219,2511.3,2510.7,16.0]
[1749154412726,2.79946191,2511.4,2510.5,0.55]
[1749154412930,2.41463514,2511.4,2510.7,19.98287034]
[1749154413130,7.442,2511.3,2510.7,16.39633562]
[1749154413326,1.15295375,2510.9,2509.8,1.9384702]
[1749154413564,9.685,2510.8,2509.9,1.90013012]
[1749154413927,7.463,2510.7,2509.8,25.41624511]
[1749154414161,7.462,2510.6,2510.2,16.0]
[1749154414369,2.219,2510.9,2510.2,16.0]
[1749154414574,7.462,2510.5,2510.2,16.55]
[1749154414970,7.462,2510.5,2510.1,0.55]
[1749154415172,1.15295375,2511.0,2510.2,16.0]
[1749154415471,1.15295375,2511.2,2510.4,16.0]
[1749154415672,7.45,2510.9,2510.4,16.55]
[1749154415971,7.45,2510.9,2510.4,20.53334683]
[1749154416166,2.219,2511.2,2510.6,16.55]
[1749154416465,2.219,2511.2,2510.7,0.55]
[1749154416664,0.19563514,2511.4,2510.8,16.55]
[1749154416865,0.19563514,2511.4,2510.8,4.53270498]
[1749154417035,7.443,2511.3,2510.5,1.0221]
[1749154417238,7.443,2511.3,2510.6,13.55]
[1749154417467,7.443,2511.3,2510.2,9.01935139]
[1749154417671,9.01935139,2510.7,2509.2,1.99887017]
[1749154417854,10.17230514,2510.4,2508.9,1.9874724]
[1749154418205,1.15295375,2510.0,2509.0,16.0899668]
[1749154418471,6.30590751,2510.3,2509.0,22.06473818]
[1749154418472,5.15295375,2510.3,2509.0,22.06473818]
[1749154418680,10.20029538,2510.2,2509.2,1.99887017]
[1749154419038,10.20029538,2510.2,2509.1,1.9367208]
[1749154419281,9.685,2510.1,2509.0,15.68181818]
[1749154419492,4.0,2509.9,2509.0,17.67103432]
[1749154419697,4.0,2509.9,2509.1,16.0]
[1749154419897,2.22,2509.8,2509.2,1.99887017]
[1749154420098,2.22,2509.8,2509.1,16.0]
[1749154420099,9.687,2509.8,2509.1,16.0]
[1749154420281,9.687,2509.8,2509.0,17.67103432]
[1749154420488,4.0,2509.7,2509.1,1.9367208]
[1749154420688,4.0,2509.7,2509.0,17.67103432]
[1749154421004,7.467,2509.6,2509.2,5.98417571]
[1749154421226,1.53727167,2510.5,2509.2,5.98417571]
[1749154421227,1.15295375,2510.5,2509.3,16.0]
[1749154421502,9.745,2510.4,2509.2,17.99887017]
[1749154421672,9.745,2510.4,2509.2,21.98412801]
[1749154422198,9.745,2510.4,2509.2,17.99887017]
[1749154422366,9.745,2510.4,2509.1,17.9367208]
[1749154422367,0.9745,2510.3,2509.1,17.9367208]
[1749154422893,0.9745,2510.3,2509.2,2.54887017]
[1749154423095,9.746,2510.2,2509.1,16.0]
[1749154423299,9.746,2510.2,2509.0,15.68181818]
[1749154423594,10.17230514,2510.3,2509.1,16.0]
[1749154423795,10.90895375,2510.2,2509.1,16.0]
[1749154424097,10.90895375,2510.2,2509.0,15.68181818]
[1749154424294,2.39757629,2510.1,2509.0,15.68181818]
[1749154424457,2.39757629,2510.1,2509.1,16.0]
[1749154424653,2.39757629,2510.1,2509.0,15.68181818]
[1749154424654,1.24462254,2510.1,2509.0,15.68181818]
[1749154424855,9.01935139,2509.4,2509.0,15.68181818]
[1749154425061,13.754,2509.3,2509.0,15.68181818]
[1749154425354,13.754,2509.3,2509.1,16.0]
[1749154425355,10.74477515,2509.2,2509.1,16.0]
[1749154426058,14.74477515,2509.2,2509.0,15.68181818]
[1749154426254,15.88944925,2509.2,2509.0,15.68181818]
[1749154426487,10.9966741,2509.1,2509.0,13.50942049]
[1749154426693,11.91183037,2509.1,2509.0,13.40229507]
[1749154426895,11.38927167,2509.1,2509.0,12.80014919]
[1749154427217,11.38927167,2509.1,2507.0,2.11113622]
[1749154427218,4.74235851,2509.1,2507.0,2.11113622]
[1749154427379,1.14387537,2508.2,2507.0,0.45137916]
[1749154427712,1.14387537,2508.4,2507.1,17.94387993]
[1749154427873,7.622,2508.1,2507.2,1.95294109]
[1749154428075,7.622,2508.1,2507.1,16.0]
[1749154428076,3.6711,2507.9,2507.1,5.93246111]
[1749154428313,3.6711,2507.9,2505.0,0.9957]
[1749154428314,8.613,2507.8,2505.0,0.9957]
[1749154428519,10.004,2507.7,2506.6,0.07]
[1749154428869,7.666,2507.6,2506.6,0.07]
[1749154429028,2.9971,2507.4,2506.6,0.07]
[1749154430189,2.355,2507.3,2506.6,16.07]
[1749154430390,3.8891,2507.2,2506.6,0.07]
[1749154430736,3.8891,2507.2,2506.6,16.07]
[1749154430892,3.8891,2507.2,2506.6,0.07]
[1749154431736,10.53675341,2506.8,2506.6,0.07]
[1749154432037,10.53675341,2506.8,2505.0,0.9957]
[1749154432038,10.53675341,2506.6,2504.5,0.40864214]
[1749154432348,1.51810591,2506.4,2504.1,0.14734677]
[1749154432689,2.441,2506.3,2504.5,0.39599179]
[1749154432893,0.55,2505.8,2504.1,0.14734677]
[1749154433030,4.55,2506.2,2499.9,1.93376036]
[1749154433031,10.53675341,2504.1,2499.9,1.93376036]
[1749154433232,0.2,2502.2,2499.2,12.0]
[1749154433479,1.51810591,2501.6,2500.0,2.78848777]
[1749154433662,21.42578061,2502.1,2500.0,2.625105]
[1749154433663,10.33665341,2501.4,2500.0,2.625105]
[1749154433867,4.0,2501.2,2500.0,2.625105]
[1749154434058,11.444,2501.1,2500.0,2.625105]
[1749154434240,11.476,2501.0,2499.2,12.0]
[1749154434449,10.53675341,2500.5,2499.2,12.0]
[1749154434656,0.33010299,2500.4,2499.2,12.0]
[1749154434990,4.0,2500.3,2499.2,12.0]
[1749154435130,9.77410299,2500.2,2499.2,10.67999264]
[1749154435330,0.33010299,2500.1,2499.2,9.0098327]
[1749154435575,0.33010299,2500.1,2496.1,1.90269991]
[1749154435576,2.53007671,2500.1,2496.1,1.90269991]
[1749154435777,10.53675341,2499.6,2496.7,2.06595054]
[1749154435938,4.0,2499.4,2496.4,2.09350545]
[1749154436269,0.33010299,2499.3,2496.9,2.03524425]
[1749154436483,0.33010299,2499.3,2497.8,10.53675341]
[1749154436643,12.209,2499.2,2497.8,10.53675341]
[1749154436839,0.33010299,2499.1,2497.9,1.05367534]
[1749154437080,0.09320299,2499.1,2497.9,1.05367534]
[1749154437283,0.09320299,2499.1,2497.8,0.38981161]
[1749154437468,0.2,2498.7,2496.3,1.0555]
[1749154437652,1.0153,2498.5,2495.6,2.06719837]
[1749154437853,2.05542358,2499.4,2495.6,2.06719837]
[1749154437854,1.0153,2497.8,2495.6,2.06719837]
[1749154438071,0.20450851,2497.9,2495.6,2.06719837]
[1749154438247,12.793,2497.8,2495.8,2.05731338]
[1749154438447,10.53675341,2499.1,2495.8,2.07951763]
[1749154438693,10.53675341,2499.2,2496.2,2.06737887]
[1749154438895,0.33010299,2499.0,2496.2,2.06737887]
[1749154439060,0.034634,2499.0,2497.8,10.53675341]
[1749154439388,0.20478596,2499.4,2498.4,16.0]
[1749154439749,0.2,2502.3,2498.4,16.0]
[1749154439750,0.2,2502.3,2498.4,16.40214766]
[1749154440055,2.28775075,2503.9,2498.4,16.40214766]
[1749154440056,10.53675341,2501.5,2498.4,0.40214766]
[1749154440257,0.09834296,2501.4,2498.4,10.53675341]
[1749154440586,10.13509637,2502.1,2498.6,1.005]
[1749154440760,10.53675341,2502.1,2499.2,16.0]
[1749154440960,10.53675341,2502.1,2498.5,1.05367534]
[1749154440961,12.8,2502.0,2499.7,16.0]
[1749154441162,0.0642,2501.9,2500.2,16.0]
[1749154441477,12.8642,2501.9,2500.0,17.005]
[1749154441673,12.8642,2501.9,2500.2,16.0]
[1749154441875,12.8,2501.8,2500.2,16.0]
[1749154442082,0.0642,2502.6,2500.9,10.53675341]
[1749154442256,12.8,2502.5,2501.0,16.0]
[1749154442457,12.8,2502.5,2501.1,1.005]
[1749154442665,12.8,2502.5,2501.2,1.7005]
[1749154442961,12.8,2502.5,2501.2,28.23725341]
[1749154443160,12.8,2502.5,2501.2,17.7005]
[1749154443387,12.8,2502.5,2501.2,16.0]
[1749154443588,8.64,2503.0,2501.2,16.0]
[1749154443791,12.8,2502.9,2501.6,16.0]
[1749154443993,12.801,2502.8,2502.0,16.0]
[1749154444313,12.801,2502.8,2501.2,16.0]
[1749154444462,12.801,2502.8,2501.4,16.0]
[1749154444652,12.801,2502.7,2501.4,16.0]
[1749154445387,1.27401255,2505.3,2501.7,16.0]
[1749154445554,0.67046316,2505.2,2502.6,17.0354]
[1749154445753,12.801,2505.1,2502.6,17.0354]
[1749154445958,12.801,2505.0,2503.3,10.57004881]
[1749154446203,0.27029196,2505.2,2503.4,16.0]
[1749154446503,12.801,2505.1,2502.8,16.0]
[1749154446714,13.07129196,2505.1,2502.8,16.0]
[1749154446853,17.24929196,2505.1,2502.8,16.0]
[1749154447059,12.801,2505.1,2503.0,16.0]
[1749154447296,10.57004881,2505.0,2503.0,16.0]
[1749154447468,0.0642,2504.9,2502.3,16.0]
[1749154447655,10.57004881,2504.7,2501.9,17.0354]
[1749154448091,10.57004881,2504.7,2502.4,0.55]
[1749154448292,10.63424881,2504.9,2502.5,1.655]
[1749154448598,10.57004881,2504.4,2501.9,1.36905946]
[1749154448796,0.0642,2504.3,2502.0,0.33364612]
[1749154449359,0.0642,2504.3,2502.1,10.57004881]
[1749154449693,0.0642,2504.3,2502.3,16.55]
[1749154449892,12.8,2504.2,2502.3,16.55]
[1749154450199,12.8,2504.2,2502.2,10.90366826]
[1749154450200,0.0642,2504.3,2502.7,16.55]
[1749154450497,0.0642,2504.3,2502.7,0.55]
[1749154450658,12.8,2504.2,2503.0,16.55]
[1749154451090,12.8,2504.2,2503.2,0.55]
[1749154451457,0.0642,2504.9,2503.2,0.55]
[1749154451658,12.8,2504.8,2503.4,0.55]
[1749154451862,12.8,2504.7,2503.4,1.71700488]
[1749154452162,12.8,2504.6,2503.2,0.55]
[1749154452381,12.8,2504.6,2503.2,11.12004881]
[1749154452692,0.0642,2504.9,2503.2,11.12004881]
[1749154452693,0.0642,2504.9,2503.4,0.55]
[1749154452898,12.785,2504.8,2503.7,16.55]
[1749154453188,12.785,2504.8,2503.4,0.55]
[1749154453189,12.785,2504.8,2503.4,0.39100961]
[1749154453392,12.785,2504.8,2503.2,0.55]
[1749154453561,12.785,2504.8,2503.2,16.55]
[1749154453756,0.0642,2504.9,2503.6,16.55]
[1749154453991,8.641,2505.4,2504.0,16.0]
[1749154454383,12.752,2505.3,2504.1,0.9688]
[1749154454782,12.727,2505.2,2504.8,16.0]
[1749154454983,12.731,2505.1,2504.8,16.0]
[1749154455196,12.726,2505.0,2504.1,0.9688]
[1749154455558,12.707,2504.9,2504.4,16.0]
[1749154455797,12.707,2504.9,2504.1,0.9688]
[1749154456060,8.638,2506.4,2504.3,16.0]
[1749154456292,12.684,2506.3,2504.3,16.0]
[1749154456518,21.312,2506.2,2504.7,16.0]
[1749154456661,12.675,2506.1,2504.7,16.0]
[1749154457060,8.637,2506.2,2504.7,16.0]
[1749154457300,12.653,2506.1,2504.7,16.0]
[1749154457460,12.653,2506.1,2504.1,16.9688]
[1749154457664,8.637,2506.2,2504.1,16.9688]
[1749154457892,12.636,2506.1,2504.1,16.9688]
[1749154458261,12.636,2506.1,2504.5,16.0]
[1749154458464,12.636,2506.1,2504.5,0.40088783]
[1749154458656,12.636,2506.1,2504.1,0.9688]
[1749154458869,12.602,2506.0,2504.4,16.0]
[1749154459520,0.0642,2507.0,2505.6,16.0]
[1749154459808,12.591,2506.9,2505.6,16.0]
[1749154460140,12.591,2506.9,2505.0,1.0605]
[1749154460477,13.49323897,2506.9,2505.0,1.0605]
[1749154460677,0.0642,2506.4,2504.9,1.19923]
[1749154460922,8.635,2506.3,2504.5,1.0605]
[1749154461286,8.635,2506.3,2504.6,16.0]
[1749154461629,12.567,2506.2,2505.3,16.0]
[1749154461980,12.567,2506.2,2504.9,26.57004881]
[1749154462198,12.567,2506.2,2505.0,10.57004881]
[1749154462515,8.635,2506.3,2505.1,16.0]
[1749154462720,12.533,2506.2,2505.3,16.0]
[1749154462879,12.533,2506.2,2505.1,16.0]
[1749154463213,12.518,2506.1,2505.1,19.99182921]
[1749154463401,12.518,2506.1,2505.1,19.99172027]
[1749154463596,12.518,2506.1,2505.1,16.0]
[1749154463798,12.518,2506.1,2505.2,1.3065]
[1749154464000,8.635,2506.3,2505.5,3.99119441]
[1749154464325,12.475,2506.2,2505.2,1.3065]
[1749154464526,12.475,2506.2,2505.3,26.57004881]
[1749154464725,8.635,2506.3,2505.5,16.0]
[1749154464880,12.46,2506.1,2505.5,16.0]
[1749154465185,8.635,2506.3,2505.5,16.0]
[1749154465385,8.635,2506.3,2505.8,3.99072454]
[1749154465722,12.421,2506.4,2506.3,1.3065]
[1749154466546,8.633,2507.3,2506.3,1.3065]
[1749154466730,12.392,2507.2,2506.4,16.0]
[1749154466938,8.633,2507.3,2506.6,26.57004881]
[1749154467109,6.5098,2507.7,2506.6,29.77624782]
[1749154467444,6.5098,2507.7,2507.2,1.3065]